[Event "January 9 Early 2024"]
[Site "https://www.chess.com"]
[Date "2024.01.11"]
[Round "2"]
[White "Romero Arzuaga, Yudel"]
[Black "Bardyk, Artem"]
[Result "0-1"]
[Board "117"]
[TimeControl "180+1"]
[WhiteFideId "3521010"]
[BlackFideId "34349979"]
[WhiteElo "2440"]
[BlackElo "2770"]
[WhiteTeam "CUB"]
[BlackTeam "RUS"]
[WhiteClock "0:01:09"]
[BlackClock "0:00:13"]

1. d4 {[%clk 0:03:00]}  d5 {[%clk 0:02:58]} 2. Nf3 {[%clk 0:03:01]}  Nf6 {[%clk 0:02:57]} 3. Bf4 {[%clk 0:03:01]}  c6 {[%clk 0:02:57]} 4. e3 {[%clk 0:03:01]}  g6 {[%clk 0:02:56]} 5. Nbd2 {[%clk 0:02:57]}  Bg7 {[%clk 0:02:56]} 6. Be2 {[%clk 0:02:56]}  O-O {[%clk 0:02:56]} 7. h3 {[%clk 0:02:56]}  Nbd7 {[%clk 0:02:52]} 8. O-O {[%clk 0:02:55]}  Re8 {[%clk 0:02:51]} 9. Bh2 {[%clk 0:02:54]}  Ne4 {[%clk 0:02:45]} 10. c4 {[%clk 0:02:49]}  Nxd2 {[%clk 0:02:44]} 11. Qxd2 {[%clk 0:02:46]}  Nf6 {[%clk 0:02:41]} 12. Rfd1 {[%clk 0:02:37]}  Be6 {[%clk 0:02:37]} 13. Qc2 {[%clk 0:02:33]}  dxc4 {[%clk 0:02:31]} 14. Bxc4 {[%clk 0:02:32]}  Bxc4 {[%clk 0:02:32]} 15. Qxc4 {[%clk 0:02:31]}  Qd5 {[%clk 0:02:31]} 16. Qc2 {[%clk 0:02:30]}  Rad8 {[%clk 0:02:28]} 17. b4 {[%clk 0:02:28]}  Qe4 {[%clk 0:02:26]} 18. Qxe4 {[%clk 0:02:22]}  Nxe4 {[%clk 0:02:27]} 19. Rab1 {[%clk 0:02:22]}  Nc3 {[%clk 0:02:26]} 20. Rdc1 {[%clk 0:02:22]}  Nxb1 {[%clk 0:02:21]} 21. Rxb1 {[%clk 0:02:23]}  Rd5 {[%clk 0:02:20]} 22. a4 {[%clk 0:02:22]}  f6 {[%clk 0:02:07]} 23. Bg3 {[%clk 0:02:16]}  e5 {[%clk 0:02:02]} 24. Rb2 {[%clk 0:02:07]}  exd4 {[%clk 0:01:58]} 25. exd4 {[%clk 0:02:04]}  Kf7 {[%clk 0:01:55]} 26. b5 {[%clk 0:02:00]}  cxb5 {[%clk 0:01:46]} 27. axb5 {[%clk 0:02:01]}  g5 {[%clk 0:01:43]} 28. Ra2 {[%clk 0:01:59]}  Rxb5 {[%clk 0:01:35]} 29. Rxa7 {[%clk 0:01:58]}  h5 {[%clk 0:01:34]} 30. Bd6 {[%clk 0:01:52]}  g4 {[%clk 0:01:28]} 31. hxg4 {[%clk 0:01:50]}  hxg4 {[%clk 0:01:29]} 32. Nd2 {[%clk 0:01:49]}  f5 {[%clk 0:01:23]} 33. Bc5 {[%clk 0:01:46]}  Re1+ {[%clk 0:01:12]} 34. Kh2 {[%clk 0:01:45]}  Bh6 {[%clk 0:00:50]} 35. Nc4 {[%clk 0:01:43]}  Bf4+ {[%clk 0:00:47]} 36. g3 {[%clk 0:01:43]}  Rbb1 {[%clk 0:00:45]} 37. Rxb7+ {[%clk 0:01:17]}  Rxb7 {[%clk 0:00:46]} 38. gxf4 {[%clk 0:01:16]}  Rbb1 {[%clk 0:00:40]} 39. f3 {[%clk 0:01:15]}  Re2+ {[%clk 0:00:22]} 40. Kg3 {[%clk 0:01:15]}  Rg1+ {[%clk 0:00:22]} 41. Kh4 {[%clk 0:01:14]}  gxf3 {[%clk 0:00:20]} 42. Ne5+ {[%clk 0:01:14]}  Rxe5 {[%clk 0:00:15]} 43. dxe5 {[%clk 0:01:14]}  Rg4+ {[%clk 0:00:14]} 44. Kh3 {[%clk 0:01:12]}  Ke6 {[%clk 0:00:14]} 45. Be3 {[%clk 0:01:10]}  Kd5 {[%clk 0:00:14]} 46. Bc1 {[%clk 0:01:09]}  f2 {[%clk 0:00:13]} 0-1

[Event "January 9 Early 2024"]
[Site "https://www.chess.com"]
[Date "2024.01.11"]
[Round "2"]
[White "Mirzoev, Azer"]
[Black "Kraus, Tomas"]
[Result "1-0"]
[Board "125"]
[TimeControl "180+1"]
[WhiteFideId "13400304"]
[BlackFideId "331708"]
[WhiteElo "2629"]
[BlackElo "2372"]
[WhiteTeam "AZE"]
[BlackTeam "CZE"]
[WhiteClock "0:00:49"]
[BlackClock "0:00:03"]

1. c4 {[%clk 0:03:00]}  c5 {[%clk 0:00:31]} 2. Nc3 {[%clk 0:02:59]}  Nc6 {[%clk 0:00:31]} 3. g3 {[%clk 0:03:00]}  g6 {[%clk 0:00:31]} 4. Bg2 {[%clk 0:03:01]}  Bg7 {[%clk 0:00:31]} 5. h4 {[%clk 0:03:01]}  h5 {[%clk 0:00:31]} 6. a3 {[%clk 0:02:59]}  Nf6 {[%clk 0:00:29]} 7. d3 {[%clk 0:02:58]}  O-O {[%clk 0:00:29]} 8. Rb1 {[%clk 0:02:59]}  d6 {[%clk 0:00:29]} 9. b4 {[%clk 0:02:57]}  Nd7 {[%clk 0:00:28]} 10. Bd2 {[%clk 0:02:54]}  cxb4 {[%clk 0:00:18]} 11. axb4 {[%clk 0:02:54]}  a5 {[%clk 0:00:17]} 12. b5 {[%clk 0:02:54]}  Nb4 {[%clk 0:00:18]} 13. Nh3 {[%clk 0:02:53]}  Qc7 {[%clk 0:00:16]} 14. Nf4 {[%clk 0:02:50]}  e6 {[%clk 0:00:15]} 15. O-O {[%clk 0:02:48]}  Rb8 {[%clk 0:00:15]} 16. Na4 {[%clk 0:02:39]}  b6 {[%clk 0:00:14]} 17. Bxb4 {[%clk 0:02:36]}  axb4 {[%clk 0:00:15]} 18. Rxb4 {[%clk 0:02:37]}  Bb7 {[%clk 0:00:15]} 19. Bxb7 {[%clk 0:02:26]}  Qxb7 {[%clk 0:00:16]} 20. Qd2 {[%clk 0:02:13]}  Nc5 {[%clk 0:00:17]} 21. Nc3 {[%clk 0:02:09]}  Rfd8 {[%clk 0:00:13]} 22. Rbb1 {[%clk 0:02:08]}  Nd7 {[%clk 0:00:13]} 23. Ne4 {[%clk 0:01:55]}  Nf6 {[%clk 0:00:13]} 24. Nxf6+ {[%clk 0:01:54]}  Bxf6 {[%clk 0:00:14]} 25. Ng2 {[%clk 0:01:53]}  d5 {[%clk 0:00:14]} 26. cxd5 {[%clk 0:01:51]}  Rxd5 {[%clk 0:00:15]} 27. Rfc1 {[%clk 0:01:41]}  Rc8 {[%clk 0:00:14]} 28. Ne3 {[%clk 0:01:32]}  Rdc5 {[%clk 0:00:14]} 29. Rxc5 {[%clk 0:01:31]}  Rxc5 {[%clk 0:00:14]} 30. Nc4 {[%clk 0:01:29]}  Qd7 {[%clk 0:00:14]} 31. Qf4 {[%clk 0:01:20]}  Bg7 {[%clk 0:00:07]} 32. Qb8+ {[%clk 0:01:14]}  Kh7 {[%clk 0:00:04]} 33. Qxb6 {[%clk 0:01:13]}  Rf5 {[%clk 0:00:02]} 34. Qd6 {[%clk 0:00:50]}  Bd4 {[%clk 0:00:03]} 35. Qxd7 {[%clk 0:00:49]} 1-0

[Event "January 9 Early 2024"]
[Site "https://www.chess.com"]
[Date "2024.01.11"]
[Round "2"]
[White "Morales Garcia, Sergio Joshafatt"]
[Black "Quirke, Jeffrey"]
[Result "1-0"]
[Board "127"]
[TimeControl "180+1"]
[WhiteFideId "5106249"]
[BlackFideId "2013029"]
[WhiteElo "2445"]
[BlackElo "2104"]
[WhiteTeam "MEX"]
[BlackTeam "USA"]
[WhiteClock "0:00:12"]
[BlackClock "0:00:37"]

1. d4 {[%clk 0:03:00]}  Nf6 {[%clk 0:02:57]} 2. c4 {[%clk 0:03:01]}  g6 {[%clk 0:02:57]} 3. Nc3 {[%clk 0:02:59]}  Bg7 {[%clk 0:02:57]} 4. e4 {[%clk 0:02:58]}  d6 {[%clk 0:02:57]} 5. Nf3 {[%clk 0:02:59]}  O-O {[%clk 0:02:57]} 6. Be2 {[%clk 0:02:59]}  e5 {[%clk 0:02:57]} 7. Be3 {[%clk 0:02:59]}  Re8 {[%clk 0:02:52]} 8. d5 {[%clk 0:02:54]}  a5 {[%clk 0:02:49]} 9. O-O {[%clk 0:02:43]}  Na6 {[%clk 0:02:46]} 10. Nd2 {[%clk 0:02:40]}  Nd7 {[%clk 0:02:46]} 11. Rb1 {[%clk 0:02:30]}  Ndc5 {[%clk 0:02:45]} 12. a3 {[%clk 0:02:24]}  f5 {[%clk 0:02:40]} 13. f3 {[%clk 0:02:23]}  f4 {[%clk 0:02:03]} 14. Bf2 {[%clk 0:02:22]}  g5 {[%clk 0:02:03]} 15. b4 {[%clk 0:02:22]}  Nd7 {[%clk 0:02:02]} 16. Na4 {[%clk 0:02:15]}  h5 {[%clk 0:01:55]} 17. c5 {[%clk 0:02:11]}  axb4 {[%clk 0:01:44]} 18. axb4 {[%clk 0:02:10]}  Nf6 {[%clk 0:01:35]} 19. b5 {[%clk 0:02:06]}  Nxc5 {[%clk 0:01:34]} 20. Nxc5 {[%clk 0:02:05]}  dxc5 {[%clk 0:01:35]} 21. Bxc5 {[%clk 0:02:05]}  g4 {[%clk 0:01:30]} 22. Nc4 {[%clk 0:01:52]}  g3 {[%clk 0:01:24]} 23. h3 {[%clk 0:01:52]}  Nh7 {[%clk 0:01:15]} 24. d6 {[%clk 0:01:47]}  Bxh3 {[%clk 0:01:14]} 25. gxh3 {[%clk 0:01:34]}  Qh4 {[%clk 0:01:14]} 26. Qd2 {[%clk 0:01:03]}  Ng5 {[%clk 0:01:09]} 27. d7 {[%clk 0:00:57]}  Nxh3+ {[%clk 0:01:04]} 28. Kg2 {[%clk 0:00:56]}  Ng1 {[%clk 0:00:56]} 29. dxe8=Q+ {[%clk 0:00:21]}  Rxe8 {[%clk 0:00:57]} 30. Rxg1 {[%clk 0:00:16]}  Qh2+ {[%clk 0:00:56]} 31. Kf1 {[%clk 0:00:16]}  Bf8 {[%clk 0:00:55]} 32. Bd3 {[%clk 0:00:13]}  Qxd2 {[%clk 0:00:49]} 33. Nxd2 {[%clk 0:00:12]}  Bxc5 {[%clk 0:00:50]} 34. Rh1 {[%clk 0:00:12]}  Rd8 {[%clk 0:00:45]} 35. Bc4+ {[%clk 0:00:12]}  Kg7 {[%clk 0:00:44]} 36. Nb3 {[%clk 0:00:13]}  Rh8 {[%clk 0:00:37]} 37. Nxc5 {[%clk 0:00:12]}  h4 {[%clk 0:00:37]} 38. Kg2 {[%clk 0:00:12]} 1-0

[Event "January 9 Early 2024"]
[Site "https://www.chess.com"]
[Date "2024.01.11"]
[Round "2"]
[White "Beerdsen, Thomas"]
[Black "Kochiev, Ivan"]
[Result "1-0"]
[Board "128"]
[TimeControl "180+1"]
[WhiteFideId "1030108"]
[BlackFideId "2917890"]
[WhiteElo "2851"]
[BlackElo "2556"]
[WhiteTeam "NED"]
[BlackTeam "BUL"]
[WhiteClock "0:01:04"]
[BlackClock "0:00:02"]

1. e4 {[%clk 0:03:00]}  c5 {[%clk 0:02:59]} 2. Nf3 {[%clk 0:03:01]}  d6 {[%clk 0:03:00]} 3. d4 {[%clk 0:03:01]}  cxd4 {[%clk 0:03:01]} 4. Nxd4 {[%clk 0:03:02]}  Nf6 {[%clk 0:03:01]} 5. Nc3 {[%clk 0:03:03]}  Nc6 {[%clk 0:03:02]} 6. Nd5 {[%clk 0:03:03]}  e6 {[%clk 0:03:02]} 7. Nxf6+ {[%clk 0:03:03]}  gxf6 {[%clk 0:03:00]} 8. Be3 {[%clk 0:03:04]}  Bd7 {[%clk 0:02:55]} 9. Be2 {[%clk 0:03:03]}  a6 {[%clk 0:02:55]} 10. O-O {[%clk 0:03:02]}  Be7 {[%clk 0:02:52]} 11. c4 {[%clk 0:03:02]}  Rc8 {[%clk 0:02:51]} 12. Rc1 {[%clk 0:03:01]}  O-O {[%clk 0:02:50]} 13. f4 {[%clk 0:03:00]}  Kh8 {[%clk 0:02:19]} 14. Bf3 {[%clk 0:02:58]}  Rg8 {[%clk 0:02:18]} 15. Kh1 {[%clk 0:02:58]}  Qa5 {[%clk 0:02:09]} 16. a3 {[%clk 0:02:56]}  Bf8 {[%clk 0:01:57]} 17. Nxc6 {[%clk 0:02:44]}  Bxc6 {[%clk 0:01:45]} 18. Bd4 {[%clk 0:02:43]}  Bg7 {[%clk 0:01:42]} 19. Bc3 {[%clk 0:02:40]}  Qc7 {[%clk 0:01:39]} 20. Qe1 {[%clk 0:02:36]}  Bd7 {[%clk 0:01:11]} 21. b3 {[%clk 0:02:28]}  Qc5 {[%clk 0:01:07]} 22. Bb4 {[%clk 0:02:24]}  Qc7 {[%clk 0:01:06]} 23. Rd1 {[%clk 0:02:23]}  Bf8 {[%clk 0:01:03]} 24. Qh4 {[%clk 0:02:22]}  Rg6 {[%clk 0:00:58]} 25. f5 {[%clk 0:02:14]}  exf5 {[%clk 0:00:50]} 26. exf5 {[%clk 0:02:11]}  Bxf5 {[%clk 0:00:50]} 27. Bd5 {[%clk 0:02:11]}  Rg5 {[%clk 0:00:46]} 28. Bc3 {[%clk 0:02:11]}  Bg7 {[%clk 0:00:42]} 29. Rde1 {[%clk 0:01:45]}  Qd7 {[%clk 0:00:37]} 30. Re3 {[%clk 0:01:42]}  Re8 {[%clk 0:00:28]} 31. Bd2 {[%clk 0:01:28]}  Rxe3 {[%clk 0:00:15]} 32. Bxe3 {[%clk 0:01:29]}  Rg4 {[%clk 0:00:16]} 33. Qf2 {[%clk 0:01:24]}  Be6 {[%clk 0:00:15]} 34. Bf3 {[%clk 0:01:23]}  Rg6 {[%clk 0:00:14]} 35. Bd4 {[%clk 0:01:24]}  f5 {[%clk 0:00:14]} 36. Rd1 {[%clk 0:01:23]}  Qe7 {[%clk 0:00:10]} 37. h3 {[%clk 0:01:22]}  Be5 {[%clk 0:00:09]} 38. c5 {[%clk 0:01:20]}  f6 {[%clk 0:00:04]} 39. cxd6 {[%clk 0:01:16]}  Qxd6 {[%clk 0:00:03]} 40. Bb2 {[%clk 0:01:15]}  Qe7 {[%clk 0:00:03]} 41. Re1 {[%clk 0:01:14]}  Qc7 {[%clk 0:00:02]} 42. Bh5 {[%clk 0:01:13]}  Bg3 {[%clk 0:00:02]} 43. Qe2 {[%clk 0:01:02]}  Bxe1 {[%clk 0:00:01]} 44. Bxg6 {[%clk 0:01:03]}  hxg6 {[%clk 0:00:02]} 45. Qxe6 {[%clk 0:01:04]} 1-0

[Event "January 9 Early 2024"]
[Site "https://www.chess.com"]
[Date "2024.01.11"]
[Round "2"]
[White "Teillet, Benoit"]
[Black "Tan, Ralph"]
[Result "0-1"]
[Board "130"]
[TimeControl "180+1"]
[WhiteFideId "616591"]
[BlackFideId "30966590"]
[WhiteElo "2275"]
[BlackElo "2516"]
[WhiteTeam "FRA"]
[BlackTeam "USA"]
[WhiteClock "0:00:38"]
[BlackClock "0:00:34"]

1. b4 {[%clk 0:03:00]}  e5 {[%clk 0:02:58]} 2. Bb2 {[%clk 0:03:00]}  Bxb4 {[%clk 0:02:58]} 3. Bxe5 {[%clk 0:03:00]}  Nf6 {[%clk 0:02:58]} 4. e3 {[%clk 0:02:56]}  O-O {[%clk 0:02:58]} 5. Nf3 {[%clk 0:02:55]}  d6 {[%clk 0:02:56]} 6. Bb2 {[%clk 0:02:55]}  Bg4 {[%clk 0:02:52]} 7. Be2 {[%clk 0:02:55]}  Nc6 {[%clk 0:02:52]} 8. O-O {[%clk 0:02:56]}  d5 {[%clk 0:02:52]} 9. d4 {[%clk 0:02:55]}  Bd6 {[%clk 0:02:52]} 10. Nbd2 {[%clk 0:02:55]}  Re8 {[%clk 0:02:49]} 11. c4 {[%clk 0:02:54]}  Bf8 {[%clk 0:02:39]} 12. h3 {[%clk 0:02:50]}  Bh5 {[%clk 0:02:39]} 13. Rc1 {[%clk 0:02:41]}  Ne7 {[%clk 0:02:38]} 14. Qb3 {[%clk 0:02:33]}  Rb8 {[%clk 0:02:30]} 15. Bd3 {[%clk 0:02:32]}  c6 {[%clk 0:02:21]} 16. a4 {[%clk 0:02:27]}  dxc4 {[%clk 0:02:17]} 17. Bxc4 {[%clk 0:02:23]}  Ned5 {[%clk 0:02:17]} 18. Ne5 {[%clk 0:02:16]}  Bd6 {[%clk 0:01:58]} 19. Ndf3 {[%clk 0:02:11]}  Bxf3 {[%clk 0:01:57]} 20. Nxf3 {[%clk 0:02:11]}  Qe7 {[%clk 0:01:54]} 21. Rfe1 {[%clk 0:02:09]}  Rbd8 {[%clk 0:01:48]} 22. Rcd1 {[%clk 0:02:07]}  Ne4 {[%clk 0:01:46]} 23. Ne5 {[%clk 0:01:56]}  Bxe5 {[%clk 0:01:43]} 24. dxe5 {[%clk 0:01:56]}  Nb6 {[%clk 0:01:43]} 25. Bf1 {[%clk 0:01:39]}  Nd2 {[%clk 0:01:38]} 26. Qc2 {[%clk 0:01:31]}  Nxf1 {[%clk 0:01:37]} 27. Rxf1 {[%clk 0:01:31]}  Qb4 {[%clk 0:01:37]} 28. Bd4 {[%clk 0:01:15]}  Qxa4 {[%clk 0:01:27]} 29. Qf5 {[%clk 0:01:09]}  c5 {[%clk 0:01:24]} 30. e6 {[%clk 0:00:58]}  fxe6 {[%clk 0:01:19]} 31. Qxc5 {[%clk 0:00:59]}  e5 {[%clk 0:01:15]} 32. Ra1 {[%clk 0:00:52]}  Qb3 {[%clk 0:00:58]} 33. Bxe5 {[%clk 0:00:46]}  Rd5 {[%clk 0:00:55]} 34. Qc7 {[%clk 0:00:46]}  Rdxe5 {[%clk 0:00:52]} 35. Qxb7 {[%clk 0:00:44]}  Qf7 {[%clk 0:00:44]} 36. Rxa7 {[%clk 0:00:42]}  Qxb7 {[%clk 0:00:44]} 37. Rxb7 {[%clk 0:00:43]}  Nd5 {[%clk 0:00:45]} 38. Rd1 {[%clk 0:00:43]}  Nf6 {[%clk 0:00:44]} 39. Ra1 {[%clk 0:00:43]}  R5e7 {[%clk 0:00:44]} 40. Rb4 {[%clk 0:00:43]}  h5 {[%clk 0:00:45]} 41. Rab1 {[%clk 0:00:43]}  Kf7 {[%clk 0:00:45]} 42. Rf4 {[%clk 0:00:43]}  Kg6 {[%clk 0:00:45]} 43. Rb5 {[%clk 0:00:43]}  Re5 {[%clk 0:00:45]} 44. Rb6 {[%clk 0:00:43]}  Rd8 {[%clk 0:00:44]} 45. h4 {[%clk 0:00:42]}  Rf5 {[%clk 0:00:39]} 46. Ra4 {[%clk 0:00:40]}  Rd1+ {[%clk 0:00:38]} 47. Kh2 {[%clk 0:00:40]}  Rxf2 {[%clk 0:00:39]} 48. e4 {[%clk 0:00:38]}  Kh7 {[%clk 0:00:35]} 49. e5 {[%clk 0:00:38]}  Ng4+ {[%clk 0:00:34]} 50. Kg3 {[%clk 0:00:38]}  Rd3# {[%clk 0:00:34]} 0-1

[Event "January 9 Early 2024"]
[Site "https://www.chess.com"]
[Date "2024.01.11"]
[Round "2"]
[White "Crocker, Philip J"]
[Black "Andreikin, Dmitry"]
[Result "0-1"]
[Board "132"]
[TimeControl "180+1"]
[WhiteFideId "403180"]
[BlackFideId "4158814"]
[WhiteElo "2125"]
[BlackElo "3107"]
[WhiteTeam "ENG"]
[BlackTeam "FID"]
[WhiteClock "0:00:01"]
[BlackClock "0:01:32"]

1. c4 {[%clk 0:03:00]}  e5 {[%clk 0:02:59]} 2. g3 {[%clk 0:03:00]}  Nf6 {[%clk 0:02:59]} 3. Bg2 {[%clk 0:03:00]}  Nc6 {[%clk 0:02:59]} 4. Nc3 {[%clk 0:02:59]}  Bb4 {[%clk 0:02:59]} 5. Nd5 {[%clk 0:02:58]}  O-O {[%clk 0:02:58]} 6. Nf3 {[%clk 0:02:52]}  e4 {[%clk 0:02:58]} 7. Nh4 {[%clk 0:02:47]}  d6 {[%clk 0:02:56]} 8. Nxb4 {[%clk 0:02:40]}  Nxb4 {[%clk 0:02:56]} 9. a3 {[%clk 0:02:35]}  Nc6 {[%clk 0:02:51]} 10. d4 {[%clk 0:02:28]}  exd3 {[%clk 0:02:50]} 11. Qxd3 {[%clk 0:02:27]}  Ne5 {[%clk 0:02:50]} 12. Qc2 {[%clk 0:02:25]}  Be6 {[%clk 0:02:48]} 13. b3 {[%clk 0:02:22]}  Qd7 {[%clk 0:02:48]} 14. O-O {[%clk 0:02:16]}  Bh3 {[%clk 0:02:47]} 15. Bg5 {[%clk 0:02:07]}  Bxg2 {[%clk 0:02:47]} 16. Nxg2 {[%clk 0:02:03]}  Nh5 {[%clk 0:02:38]} 17. Rad1 {[%clk 0:01:54]}  Qh3 {[%clk 0:02:37]} 18. f3 {[%clk 0:01:43]}  h6 {[%clk 0:02:29]} 19. Bf4 {[%clk 0:01:38]}  Rae8 {[%clk 0:02:24]} 20. Bxe5 {[%clk 0:01:33]}  Rxe5 {[%clk 0:02:25]} 21. e4 {[%clk 0:01:33]}  Rfe8 {[%clk 0:02:20]} 22. Rd5 {[%clk 0:01:32]}  Nf6 {[%clk 0:02:10]} 23. Rxe5 {[%clk 0:01:31]}  dxe5 {[%clk 0:02:11]} 24. Rd1 {[%clk 0:01:27]}  Qe6 {[%clk 0:02:10]} 25. Ne3 {[%clk 0:01:24]}  Qb6 {[%clk 0:02:09]} 26. Qc3 {[%clk 0:01:18]}  c6 {[%clk 0:02:01]} 27. Kg2 {[%clk 0:01:18]}  Rd8 {[%clk 0:01:58]} 28. Rxd8+ {[%clk 0:00:58]}  Qxd8 {[%clk 0:01:59]} 29. h4 {[%clk 0:00:56]}  Ne8 {[%clk 0:01:53]} 30. Ng4 {[%clk 0:00:41]}  f6 {[%clk 0:01:53]} 31. Nf2 {[%clk 0:00:38]}  Nc7 {[%clk 0:01:52]} 32. Qd3 {[%clk 0:00:37]}  Qe7 {[%clk 0:01:52]} 33. b4 {[%clk 0:00:33]}  Ne6 {[%clk 0:01:52]} 34. Ng4 {[%clk 0:00:29]}  Nd4 {[%clk 0:01:51]} 35. Ne3 {[%clk 0:00:28]}  Qd6 {[%clk 0:01:41]} 36. c5 {[%clk 0:00:22]}  Qe6 {[%clk 0:01:40]} 37. Qc4 {[%clk 0:00:21]}  Kf7 {[%clk 0:01:40]} 38. Qxe6+ {[%clk 0:00:20]}  Kxe6 {[%clk 0:01:41]} 39. Nc4 {[%clk 0:00:20]}  g5 {[%clk 0:01:35]} 40. hxg5 {[%clk 0:00:19]}  fxg5 {[%clk 0:01:34]} 41. Kf2 {[%clk 0:00:18]}  h5 {[%clk 0:01:34]} 42. Kg2 {[%clk 0:00:18]}  h4 {[%clk 0:01:34]} 43. gxh4 {[%clk 0:00:17]}  gxh4 {[%clk 0:01:34]} 44. Nd2 {[%clk 0:00:15]}  Nc2 {[%clk 0:01:33]} 45. Kh3 {[%clk 0:00:13]}  Nxa3 {[%clk 0:01:33]} 46. Kxh4 {[%clk 0:00:14]}  Nc2 {[%clk 0:01:34]} 47. Kg4 {[%clk 0:00:11]}  Nxb4 {[%clk 0:01:34]} 48. f4 {[%clk 0:00:12]}  exf4 {[%clk 0:01:34]} 49. Kxf4 {[%clk 0:00:12]}  Nd3+ {[%clk 0:01:34]} 50. Ke3 {[%clk 0:00:10]}  Nxc5 {[%clk 0:01:35]} 51. Nc4 {[%clk 0:00:08]}  b6 {[%clk 0:01:33]} 52. Kd4 {[%clk 0:00:06]}  Nd7 {[%clk 0:01:33]} 53. Ne3 {[%clk 0:00:04]}  a5 {[%clk 0:01:31]} 54. Kc4 {[%clk 0:00:04]}  Ne5+ {[%clk 0:01:31]} 55. Kc3 {[%clk 0:00:02]}  b5 {[%clk 0:01:31]} 56. Kd4 {[%clk 0:00:01]}  a4 {[%clk 0:01:32]} 0-1

[Event "January 9 Early 2024"]
[Site "https://www.chess.com"]
[Date "2024.01.11"]
[Round "2"]
[White "Devaev, Alexander"]
[Black "Kostiukov, Alexandr"]
[Result "1-0"]
[Board "134"]
[TimeControl "180+1"]
[WhiteFideId "4169395"]
[BlackFideId "14108100"]
[WhiteElo "2523"]
[BlackElo "2300"]
[WhiteTeam "RUS"]
[BlackTeam "UKR"]
[WhiteClock "0:00:32"]
[BlackClock "0:00:11"]

1. d4 {[%clk 0:02:58]}  g6 {[%clk 0:02:59]} 2. c4 {[%clk 0:02:57]}  Bg7 {[%clk 0:02:59]} 3. e4 {[%clk 0:02:57]}  d6 {[%clk 0:02:59]} 4. h3 {[%clk 0:02:56]}  e5 {[%clk 0:02:59]} 5. d5 {[%clk 0:02:56]}  f5 {[%clk 0:02:55]} 6. exf5 {[%clk 0:02:53]}  Bxf5 {[%clk 0:02:52]} 7. Nc3 {[%clk 0:02:54]}  Nf6 {[%clk 0:02:51]} 8. Nge2 {[%clk 0:02:54]}  O-O {[%clk 0:02:51]} 9. Ng3 {[%clk 0:02:54]}  a5 {[%clk 0:02:50]} 10. Be2 {[%clk 0:02:48]}  Na6 {[%clk 0:02:50]} 11. Be3 {[%clk 0:02:47]}  b6 {[%clk 0:02:49]} 12. O-O {[%clk 0:02:42]}  Nc5 {[%clk 0:02:40]} 13. Nxf5 {[%clk 0:02:30]}  gxf5 {[%clk 0:02:40]} 14. f4 {[%clk 0:02:24]}  e4 {[%clk 0:02:14]} 15. Kh2 {[%clk 0:02:15]}  Kh8 {[%clk 0:01:29]} 16. Rg1 {[%clk 0:02:15]}  Qe7 {[%clk 0:01:12]} 17. Qd2 {[%clk 0:02:10]}  a4 {[%clk 0:01:01]} 18. Rae1 {[%clk 0:02:06]}  a3 {[%clk 0:00:53]} 19. b3 {[%clk 0:02:04]}  Na6 {[%clk 0:00:49]} 20. Nd1 {[%clk 0:02:00]}  Nd7 {[%clk 0:00:46]} 21. Nf2 {[%clk 0:01:58]}  Ndc5 {[%clk 0:00:46]} 22. g4 {[%clk 0:01:52]}  fxg4 {[%clk 0:00:40]} 23. Rxg4 {[%clk 0:01:45]}  Bf6 {[%clk 0:00:36]} 24. Reg1 {[%clk 0:01:44]}  Rg8 {[%clk 0:00:36]} 25. R1g2 {[%clk 0:01:35]}  Rxg4 {[%clk 0:00:35]} 26. hxg4 {[%clk 0:01:30]}  Bg7 {[%clk 0:00:24]} 27. g5 {[%clk 0:01:29]}  Rf8 {[%clk 0:00:16]} 28. Rg3 {[%clk 0:01:10]}  Nd7 {[%clk 0:00:15]} 29. Rh3 {[%clk 0:01:08]}  Nac5 {[%clk 0:00:15]} 30. Bg4 {[%clk 0:00:58]}  Kg8 {[%clk 0:00:15]} 31. b4 {[%clk 0:00:41]}  Nd3 {[%clk 0:00:13]} 32. Be6+ {[%clk 0:00:41]}  Kh8 {[%clk 0:00:12]} 33. Nxd3 {[%clk 0:00:33]}  exd3 {[%clk 0:00:12]} 34. Qxd3 {[%clk 0:00:33]}  Re8 {[%clk 0:00:11]} 35. Qxh7# {[%clk 0:00:32]} 1-0

[Event "January 9 Early 2024"]
[Site "https://www.chess.com"]
[Date "2024.01.11"]
[Round "2"]
[White "Kashefi, Amir Hosein"]
[Black "Kukhmazov, Arsen"]
[Result "1-0"]
[Board "135"]
[TimeControl "180+1"]
[WhiteFideId "12557935"]
[BlackFideId "24108260"]
[WhiteElo "2622"]
[BlackElo "2902"]
[WhiteTeam "IRI"]
[BlackTeam "FID"]
[WhiteClock "0:00:15"]
[BlackClock "0:00:22"]

1. d4 {[%clk 0:02:58]}  d5 {[%clk 0:02:59]} 2. c4 {[%clk 0:02:57]}  c6 {[%clk 0:03:00]} 3. Nc3 {[%clk 0:02:54]}  Nf6 {[%clk 0:03:00]} 4. cxd5 {[%clk 0:02:52]}  cxd5 {[%clk 0:03:01]} 5. Nf3 {[%clk 0:02:52]}  Nc6 {[%clk 0:03:01]} 6. e3 {[%clk 0:02:42]}  a6 {[%clk 0:02:56]} 7. Ne5 {[%clk 0:02:34]}  e6 {[%clk 0:02:44]} 8. f4 {[%clk 0:02:32]}  Bd7 {[%clk 0:02:33]} 9. Bd3 {[%clk 0:02:31]}  g6 {[%clk 0:02:27]} 10. O-O {[%clk 0:02:30]}  h5 {[%clk 0:02:26]} 11. b3 {[%clk 0:02:11]}  Bd6 {[%clk 0:02:16]} 12. Bd2 {[%clk 0:02:00]}  Ne7 {[%clk 0:02:08]} 13. Rc1 {[%clk 0:01:58]}  Nf5 {[%clk 0:02:02]} 14. Qe2 {[%clk 0:01:46]}  Qe7 {[%clk 0:01:56]} 15. Be1 {[%clk 0:01:42]}  h4 {[%clk 0:01:46]} 16. Bf2 {[%clk 0:01:35]}  Rd8 {[%clk 0:01:20]} 17. Rc2 {[%clk 0:01:29]}  Kf8 {[%clk 0:01:19]} 18. Rfc1 {[%clk 0:01:17]}  Kg7 {[%clk 0:01:19]} 19. Qe1 {[%clk 0:01:11]}  Bxe5 {[%clk 0:00:39]} 20. fxe5 {[%clk 0:01:03]}  Ng4 {[%clk 0:00:39]} 21. h3 {[%clk 0:00:53]}  Nxf2 {[%clk 0:00:39]} 22. Qxf2 {[%clk 0:00:52]}  Bc6 {[%clk 0:00:35]} 23. Bxf5 {[%clk 0:00:47]}  gxf5 {[%clk 0:00:31]} 24. Ne2 {[%clk 0:00:47]}  Qg5 {[%clk 0:00:30]} 25. Nf4 {[%clk 0:00:44]}  Kf8 {[%clk 0:00:29]} 26. Rxc6 {[%clk 0:00:34]}  bxc6 {[%clk 0:00:29]} 27. Rxc6 {[%clk 0:00:34]}  Qg3 {[%clk 0:00:21]} 28. Qd2 {[%clk 0:00:20]}  Kg7 {[%clk 0:00:21]} 29. Rc7 {[%clk 0:00:16]}  Rhe8 {[%clk 0:00:22]} 30. Nh5+ {[%clk 0:00:15]} 1-0